bitfinex/quotes_ETHUSD_20241212
["timestamp","ask_amount","ask_price","bid_price","bid_amount"]
[1734039145805,0.24002466,3890.6,3889.9,2.5707]
[1734039146001,0.7752,3890.7,3889.9,3.43835871]
[1734039146239,0.24002377,3890.6,3889.9,3.43835871]
[1734039146539,0.7752,3890.7,3889.9,3.43835871]
[1734039146842,0.2400412,3890.6,3889.9,3.43835871]
[1734039147052,0.7752,3890.7,3890.0,2.57066]
[1734039147216,0.7752,3890.7,3890.1,2.91443187]
[1734039147418,0.7752,3890.7,3890.1,2.5706]
[1734039147843,0.7752,3890.7,3890.2,2.57054]
[1734039149107,0.7752,3890.7,3890.3,2.57047]
[1734039149316,0.7752,3890.7,3890.1,0.84310381]
[1734039149511,1.0478452,3891.0,3890.2,0.71877144]
[1734039149821,0.8078,3891.0,3890.2,0.71877144]
[1734039150041,0.8078,3891.0,3890.6,2.57029]
[1734039152683,0.8078,3891.0,3890.2,0.71877144]
[1734039152899,0.8078,3891.0,3890.4,2.57041]
[1734039153446,0.8078,3891.0,3890.2,0.71877144]
[1734039153652,0.8078,3891.0,3890.5,2.57035]
[1734039154284,0.8078,3891.0,3890.6,2.57028]
[1734039155186,0.8078,3891.0,3890.4,0.71065814]
[1734039155187,0.8078,3891.0,3890.5,1.1406536]
[1734039156273,0.2399065,3890.9,3889.9,3.0]
[1734039156473,0.99221964,3890.8,3890.0,1.1406536]
[1734039156696,0.7523,3890.8,3890.0,3.7113336]
[1734039156987,1.03342785,3890.7,3890.0,1.1406536]
[1734039157193,0.23992785,3890.6,3890.0,1.1406536]
[1734039157390,0.7935,3890.7,3890.0,1.1406536]
[1734039158875,0.7935,3890.7,3890.3,1.1406536]
[1734039159587,0.7935,3890.7,3890.0,1.1406536]
[1734039161273,0.57653267,3890.6,3890.0,1.1406536]
[1734039161461,0.99766067,3890.5,3889.7,1.1406536]
[1734039161657,0.24016067,3890.4,3889.7,1.1406536]
[1734039161902,0.7575,3890.2,3889.7,1.1406536]
[1734039162398,0.7575,3890.2,3889.7,3.7115236]
[1734039162594,0.7575,3890.2,3889.7,1.1406536]
[1734039162961,0.7575,3890.2,3890.0,1.1406536]
[1734039163377,0.7575,3890.2,3889.7,1.1406536]
[1734039163991,1.0,3890.0,3889.7,1.1406536]
[1734039165311,1.0,3890.0,3889.7,3.7115336]
[1734039165481,1.0,3890.0,3889.7,4.08268696]
[1734039167785,1.0,3890.0,3889.7,1.51180696]
[1734039167986,1.0,3890.0,3889.7,1.1406536]
[1734039169121,1.0,3890.0,3889.8,0.7998]
[1734039170320,1.0,3890.0,3889.9,2.57076]
[1734039172693,1.0,3890.0,3889.9,5.57076]
[1734039180607,1.0,3890.0,3889.8,3.0]
[1734039181640,1.0,3890.0,3889.9,0.67115336]
[1734039181932,1.0,3890.0,3889.8,3.0]
[1734039182175,0.7859,3889.9,3889.7,1.1406536]
[1734039183534,0.24046065,3889.8,3889.2,1.07592663]
[1734039183736,0.7859,3889.9,3889.0,3.64726663]
[1734039183977,1.13022829,3889.8,3889.3,1.1406536]
[1734039184184,0.24046758,3889.7,3889.3,1.1406536]
[1734039184348,0.7859,3889.9,3889.3,1.1406536]
[1734039184548,0.24045803,3889.8,3889.3,1.1406536]
[1734039184786,0.24045803,3889.7,3889.3,1.1406536]
[1734039184994,0.7859,3889.9,3888.8,3.0]
[1734039184995,0.7859,3889.9,3889.5,1.1406536]
[1734039185195,0.24042121,3889.8,3889.5,1.1406536]
[1734039185338,0.7859,3889.9,3889.5,1.1406536]
[1734039187499,0.24044384,3889.8,3889.5,1.1406536]
[1734039187816,0.7859,3889.9,3889.5,1.1406536]
[1734039188021,0.2404413,3889.8,3889.2,1.1406536]
[1734039188157,0.2404413,3889.7,3889.2,1.1406536]
[1734039188364,1.32898567,3889.9,3889.2,1.1406536]
[1734039188612,0.24040235,3889.8,3889.2,1.1406536]
[1734039188808,0.24040235,3889.7,3889.2,1.1406536]
[1734039189112,0.7859,3889.9,3889.2,1.1406536]
[1734039189315,0.24036794,3889.8,3889.2,1.1406536]
[1734039189726,0.24036794,3889.7,3889.2,1.1406536]
[1734039189873,0.7859,3889.9,3889.2,1.1406536]
[1734039190067,0.24037327,3889.8,3889.2,1.1406536]
[1734039190286,0.24037327,3889.7,3889.2,1.1406536]
[1734039190525,0.7859,3889.9,3889.2,1.1406536]
[1734039190688,0.24035454,3889.8,3889.2,1.1406536]
[1734039190892,0.824,3889.6,3888.4,1.07592663]
[1734039191197,2.57116,3889.3,3888.4,1.1406536]
[1734039191499,1.06431181,3889.2,3888.4,1.1406536]
[1734039191709,0.24031181,3889.1,3888.6,1.1406536]
[1734039191871,0.824,3889.2,3889.0,1.1406536]
[1734039192744,0.824,3889.2,3888.7,3.7122036]
[1734039194022,0.824,3889.2,3888.7,1.1406536]
[1734039194223,0.7572,3889.5,3889.0,1.1406536]
[1734039194387,0.24006084,3889.4,3889.0,1.1406536]
[1734039194586,0.7572,3889.5,3889.0,1.1406536]
[1734039194785,0.7572,3889.5,3889.0,3.7119836]
[1734039195214,0.7572,3889.5,3889.1,2.57128]
[1734039195389,0.7572,3889.8,3889.3,1.1406536]
[1734039195823,0.7572,3889.8,3889.3,4.1406536]
[1734039196833,0.7572,3889.8,3889.3,3.7117836]
[1734039198061,0.7572,3889.8,3889.3,1.1406536]
[1734039198266,0.7572,3889.8,3889.2,3.0]
[1734039198424,0.7572,3889.8,3889.2,2.5712]
[1734039198623,0.7572,3889.8,3889.3,5.57115]
[1734039203622,0.7572,3889.8,3889.3,1.81183396]
[1734039203835,1.7951,3890.0,3889.5,2.57102]
[1734039205072,1.7951,3890.0,3889.4,2.57109]
[1734039205265,1.7951,3890.0,3889.5,2.57101]
[1734039208249,0.24027072,3889.9,3889.5,2.57101]
[1734039208564,1.7951,3890.0,3889.5,2.57101]
[1734039208738,0.24026997,3889.9,3889.5,2.57101]
[1734039208938,1.7951,3890.0,3889.5,2.57101]
[1734039209281,0.24027067,3889.9,3889.5,2.57101]
[1734039209596,1.7951,3890.0,3889.5,2.57101]
[1734039210080,0.24032216,3889.9,3889.5,2.57101]
[1734039210278,1.7951,3890.0,3889.5,2.57101]
[1734039210440,0.24032889,3889.9,3889.5,2.57101]
[1734039210641,1.7951,3890.0,3889.5,2.57101]
[1734039210947,0.24032894,3889.9,3889.5,2.57101]
[1734039211152,1.7951,3890.0,3889.5,2.57101]
[1734039211355,0.24037126,3889.9,3889.5,2.57101]
[1734039211674,0.24037092,3889.8,3889.5,2.57101]
[1734039211844,1.7951,3890.0,3889.5,2.57101]
[1734039212045,0.24037782,3889.9,3889.5,2.57101]
[1734039212267,0.24037782,3889.8,3889.5,2.57101]
[1734039212491,1.7951,3890.0,3889.5,2.57101]
[1734039212794,0.24040928,3889.9,3889.5,2.57101]
[1734039212997,0.24040928,3889.8,3889.5,2.57101]
[1734039213314,1.7951,3890.0,3889.1,1.1406536]
[1734039213594,0.24042333,3889.9,3889.4,3.0]
[1734039213793,0.24042333,3889.8,3889.4,2.57106]
[1734039214008,1.7951,3890.0,3889.4,2.57106]
[1734039214172,0.24041997,3889.9,3889.4,2.57106]
[1734039214359,0.24041997,3889.8,3889.4,2.57106]
[1734039214559,1.7951,3890.0,3889.5,2.57102]
[1734039214758,0.24041517,3889.9,3889.5,2.57102]
[1734039214994,0.24041517,3889.8,3889.5,2.57102]
[1734039215297,1.7951,3890.0,3889.5,2.57102]
[1734039215494,0.24041456,3889.9,3889.5,2.57102]
[1734039215791,0.24041456,3889.8,3889.5,2.57102]
[1734039215960,1.7951,3890.0,3889.5,2.57102]
[1734039216158,0.24041916,3889.9,3889.5,2.57102]
[1734039216376,0.24041916,3889.8,3889.5,2.57102]
[1734039216577,1.7951,3890.0,3889.5,2.57102]
[1734039216772,0.24042408,3889.9,3889.5,2.57102]
[1734039216976,0.24042408,3889.8,3889.1,1.1406536]
[1734039217181,0.24042408,3889.7,3889.3,3.0]
[1734039217503,1.7951,3890.0,3889.4,3.0]
[1734039217657,0.24044018,3889.9,3889.2,3.0]
[1734039217861,0.24044018,3889.8,3889.2,3.0]
[1734039218082,0.24044018,3889.7,3889.2,3.0]
[1734039218282,1.7951,3890.0,3889.2,3.0]
[1734039218492,0.24044238,3889.9,3889.2,3.0]
[1734039218693,0.24044238,3889.8,3889.3,3.0]
[1734039218913,0.24044238,3889.7,3889.3,5.57115]
[1734039219114,1.7951,3890.0,3889.3,5.57115]
[1734039219293,0.24044146,3889.9,3889.3,5.57115]
[1734039219468,0.24044146,3889.8,3889.3,5.57115]
[1734039219672,0.24044146,3889.7,3889.3,5.57115]
[1734039219897,0.24044146,3889.6,3889.3,5.57115]
[1734039220173,1.7951,3890.0,3889.3,5.57115]
[1734039220378,1.1299653,3889.9,3889.3,5.57115]
[1734039220579,2.86947668,3890.0,3889.3,5.57115]
[1734039220580,0.24044268,3889.8,3889.3,5.57115]
[1734039220910,0.24044268,3889.7,3889.3,5.57115]
[1734039221112,0.24045938,3889.6,3889.3,5.57115]
[1734039221325,2.86947668,3890.0,3889.3,5.57115]
[1734039221526,1.13021667,3889.9,3889.3,5.57115]
[1734039221676,0.24046639,3889.8,3889.3,5.57115]
[1734039221876,0.24046639,3889.7,3889.3,5.57115]
[1734039222109,0.24046639,3889.6,3889.3,5.57115]
[1734039222412,1.33494866,3889.9,3889.3,5.57115]
[1734039222580,0.24052712,3889.8,3889.3,5.57115]
[1734039222898,0.24052712,3889.7,3889.3,5.57115]
[1734039223085,0.24052712,3889.6,3889.3,5.57115]
[1734039223285,1.33532065,3889.9,3889.3,5.57115]
[1734039223497,1.13089089,3889.8,3889.3,5.57115]
[1734039223700,0.2405875,3889.7,3889.3,5.57115]
[1734039223904,0.2405875,3889.6,3889.3,5.57115]
[1734039224082,0.24068142,3889.5,3889.3,5.57115]
[1734039224282,1.07437668,3889.9,3889.3,5.57115]
[1734039224484,1.13116009,3889.8,3889.3,5.57115]
[1734039224783,1.13116009,3889.8,3888.8,3.64736663]
[1734039224784,0.24068237,3889.7,3888.9,2.5714]
[1734039224978,2.46695589,3889.6,3888.6,1.07592663]
[1734039225205,3.54133257,3889.5,3888.6,2.5716]
[1734039225416,3.54154539,3889.4,3888.5,1.1406536]
[1734039225620,3.54154539,3889.4,3888.8,1.1406536]
[1734039225621,2.46716871,3889.3,3888.8,1.1406536]
[1734039225819,0.51531104,3889.3,3888.8,1.1406536]
[1734039226018,1.07437668,3889.6,3888.2,4.72369327]
[1734039226019,1.07437668,3889.6,3889.1,1.1406536]
[1734039226224,2.46731882,3889.5,3888.7,2.57155]
[1734039226524,3.54167906,3889.4,3888.7,2.57155]
[1734039226717,1.1313096,3889.3,3888.7,2.57155]
[1734039226891,0.24067145,3889.2,3888.7,2.57155]
[1734039227261,0.24067145,3889.1,3888.7,2.57155]
[1734039227466,1.07437668,3889.4,3888.7,2.57155]
[1734039227627,1.13128599,3889.3,3888.7,2.57155]
[1734039227827,0.24058461,3889.2,3888.7,2.57155]
[1734039228070,0.24058461,3889.1,3888.7,2.57155]
[1734039228366,1.07437668,3889.4,3888.6,1.1406536]
[1734039228559,2.46736959,3889.3,3888.7,3.0]
[1734039228767,0.24054108,3889.2,3888.7,3.0]
[1734039228928,0.24054108,3889.1,3888.7,3.0]
[1734039229129,0.52568517,3889.4,3888.7,2.57154]
[1734039229352,1.13119136,3889.3,3888.7,2.57154]
[1734039229563,0.24049802,3889.2,3888.7,2.57154]
[1734039229727,1.07437668,3889.4,3888.7,2.57154]
[1734039230060,1.13119107,3889.3,3888.7,2.57154]
[1734039230239,0.24049791,3889.2,3888.7,2.57154]
[1734039230444,1.33592567,3889.4,3888.6,1.1406536]
[1734039230629,1.13109557,3889.3,3888.6,4.1406536]
[1734039230973,0.24046958,3889.2,3888.6,4.1406536]
[1734039231180,0.24046958,3889.1,3888.6,1.1406536]
[1734039231334,2.57115,3889.3,3888.6,1.1406536]
[1734039231335,0.24044781,3889.0,3888.6,1.1406536]
[1734039231672,0.24045295,3888.9,3888.6,1.1406536]
[1734039231836,0.69827522,3889.6,3888.2,1.1406536]
[1734039231837,0.24046137,3888.8,3888.2,1.1406536]
[1734039232213,0.24046137,3888.7,3888.2,1.1406536]
[1734039232485,2.81198186,3888.6,3888.2,1.1406536]
[1734039232643,0.24036186,3888.5,3887.9,1.1406536]
[1734039232831,1.20877114,3888.7,3887.9,1.1406536]
[1734039233033,2.46614356,3888.6,3887.9,1.1406536]
[1734039233230,0.24037466,3888.5,3887.9,1.1406536]
[1734039233466,1.20877114,3888.7,3887.9,1.1406536]
[1734039233667,1.66976493,3888.6,3887.9,1.1406536]
[1734039233867,0.24024553,3888.5,3887.9,1.1406536]
[1734039234033,0.13174841,3888.7,3887.9,1.1406536]
[1734039234034,1.46668276,3888.7,3887.9,4.1406536]
[1734039234234,0.13174841,3888.7,3887.9,4.1406536]
[1734039236295,0.13174841,3888.7,3887.9,1.1406536]
[1734039236586,0.27032384,3888.6,3887.9,1.1406536]
[1734039239292,0.23994586,3889.0,3887.9,1.1406536]
[1734039239594,0.23994586,3888.9,3887.9,1.1406536]
[1734039239895,2.81143586,3888.8,3887.9,1.1406536]
[1734039240068,2.57149,3888.8,3887.9,1.1406536]
[1734039240395,1.07702273,3889.1,3887.5,0.51466014]
[1734039240396,1.1406536,3889.0,3887.5,0.51466014]
[1734039240624,2.57174,3888.5,3887.6,1.1406536]
[1734039241094,0.23997245,3888.4,3887.6,1.1406536]
[1734039241285,2.57174,3888.5,3887.6,1.1406536]
[1734039241859,2.57155,3888.7,3887.8,1.1406536]
[1734039242059,0.23992027,3888.6,3887.8,1.1406536]
[1734039242298,2.57155,3888.7,3887.8,1.1406536]
[1734039242498,0.23988765,3888.6,3887.8,1.1406536]
[1734039242698,0.23989562,3888.5,3887.8,1.1406536]
[1734039242888,2.57164,3888.6,3887.8,1.1406536]
[1734039243091,2.81159651,3888.5,3887.8,1.1406536]
[1734039243315,2.81159651,3888.5,3887.0,2.69972466]
[1734039243316,0.38704304,3888.6,3887.2,3.0]
[1734039243500,0.23987687,3888.5,3887.2,4.1406536]
[1734039243703,0.23987687,3888.4,3887.2,4.1406536]
[1734039244013,2.57202,3888.0,3887.2,1.1406536]
[1734039244221,2.85320969,3888.0,3887.2,1.1406536]
[1734039244914,0.28118969,3888.0,3887.2,1.1406536]
[1734039245116,0.28118969,3888.0,3887.2,4.1406536]
[1734039245988,2.57201,3888.1,3887.2,1.1406536]
[1734039246326,4.14321365,3888.5,3887.0,3.0]
[1734039246327,2.57203,3888.0,3887.0,4.1406536]
[1734039247077,2.57203,3888.0,3887.0,6.7133136]
[1734039247280,2.57176,3888.4,3887.4,1.1406536]
[1734039247476,0.23974875,3888.3,3887.4,1.1406536]
[1734039247723,2.57182,3888.3,3887.4,1.1406536]
[1734039247925,2.85309688,3888.2,3887.4,1.1406536]
[1734039248222,2.57195,3888.1,3887.4,1.1406536]
[1734039248378,2.57195,3888.1,3887.2,1.1406536]
[1734039248993,0.28115688,3888.2,3887.2,1.1406536]
[1734039249210,2.572,3888.1,3887.2,1.1406536]
[1734039250083,2.04086778,3888.6,3887.2,1.1406536]
[1734039250285,2.57214,3887.9,3887.2,1.1406536]
[1734039253780,1.1406536,3888.3,3886.9,1.1406536]
[1734039253986,2.57216,3887.8,3886.9,1.1406536]
[1734039254519,2.829376,3887.8,3886.9,1.1406536]
[1734039254724,2.829376,3887.8,3886.9,4.1406536]
[1734039255826,2.57204,3888.0,3887.0,2.57267]
[1734039256188,0.23995187,3887.9,3887.5,1.1406536]
[1734039256486,0.2399405,3888.7,3888.1,2.57194]
[1734039256689,0.23989742,3889.0,3888.0,1.1406536]
[1734039257000,0.43508943,3889.1,3888.0,1.1406536]
[1734039257001,0.23989742,3888.9,3888.1,0.02571641]
[1734039257404,0.23992118,3889.0,3888.1,2.57194]
[1734039257566,0.23993125,3888.9,3888.2,2.57187]
[1734039257856,0.2399269,3889.0,3888.3,0.8123]
[1734039258016,0.23993164,3888.9,3888.3,0.8123]
[1734039258358,0.43508943,3889.1,3888.3,0.8123]
[1734039258568,0.43508943,3889.1,3888.4,2.57173]
[1734039258569,0.23997733,3889.0,3888.4,2.57173]
[1734039258879,0.43508943,3889.1,3888.4,2.57173]
[1734039259015,0.23997405,3889.0,3888.4,2.57173]
[1734039259216,0.24003008,3888.9,3888.4,3.26918468]
[1734039259459,0.43508943,3889.1,3888.3,0.8123]
[1734039259656,0.43508943,3889.1,3887.6,2.57225]
[1734039259657,2.81138598,3889.0,3888.0,3.38431]
[1734039259867,0.24003598,3888.9,3888.1,3.0]
[1734039260014,0.24003598,3888.8,3888.1,3.0]
[1734039260385,0.7912,3888.6,3887.7,0.8123]
[1734039260663,0.69046141,3888.5,3887.7,0.8123]
[1734039260867,0.24012105,3888.4,3887.8,2.57214]
[1734039261014,0.7912,3888.6,3887.8,2.57214]
[1734039261209,0.24018631,3888.5,3887.8,2.57214]
[1734039261418,0.24018631,3888.4,3887.8,2.57214]
[1734039261657,0.7912,3888.6,3887.8,2.57214]
[1734039261957,0.24020177,3888.5,3887.8,2.57214]
[1734039262114,0.24020177,3888.4,3887.8,2.57214]
[1734039262315,1.24152736,3888.6,3887.8,2.57214]
[1734039262529,0.2402216,3888.5,3888.4,1.9149536]
[1734039262731,0.2402216,3889.0,3888.4,1.9149536]
[1734039262924,0.2402216,3888.9,3888.4,0.7743]
[1734039263129,0.43508943,3889.1,3888.4,0.7743]
[1734039263332,0.24016259,3889.0,3888.4,0.7743]
[1734039263645,0.43508943,3889.1,3888.4,0.7743]
[1734039263841,0.24015854,3889.0,3888.4,0.7743]
[1734039264048,0.81631837,3889.1,3888.4,3.34604]
[1734039264234,0.81631837,3889.1,3888.5,2.57164]
[1734039264235,0.43508943,3889.1,3888.5,2.57164]
[1734039266457,0.43508943,3889.1,3888.4,0.7743]
[1734039266653,0.24005146,3889.0,3888.4,3.7743]
[1734039266883,0.43508943,3889.1,3888.4,3.7743]
[1734039267080,0.24005203,3889.0,3888.4,3.7743]
[1734039267267,0.43508943,3889.1,3888.4,0.7743]
[1734039267479,1.1406536,3889.0,3887.7,0.755]
[1734039267698,0.7752,3888.4,3887.2,2.57249]
[1734039267908,0.24007043,3888.3,3887.1,1.1406536]
[1734039268072,0.24007043,3888.2,3887.1,1.1406536]
[1734039268253,2.57183,3888.3,3887.1,1.1406536]
[1734039268454,2.57183,3888.3,3887.2,2.76204536]
[1734039268455,0.24008369,3888.2,3887.2,2.76204536]
[1734039268718,2.57183,3888.3,3887.2,2.76204536]
[1734039268905,2.81199638,3888.2,3887.2,2.57248]
[1734039269199,0.24008638,3888.1,3887.2,2.57248]
[1734039269400,0.24008638,3888.0,3887.2,2.57248]
[1734039269556,2.57191,3888.2,3887.2,2.57248]
[1734039269750,0.803,3887.0,3886.3,1.07728005]
[1734039269976,0.803,3887.0,3886.2,1.61592008]
[1734039269977,1.1406536,3886.9,3885.8,0.7717]
[1734039270195,2.57281,3886.8,3885.8,1.07066336]
[1734039270412,0.803,3887.0,3885.8,1.07066336]
[1734039270413,2.57288,3886.7,3885.8,1.07066336]
[1734039270715,2.57334,3886.0,3885.4,0.7865]
[1734039270852,2.57334,3886.0,3885.2,1.1406536]
[1734039271208,2.57334,3886.0,3885.1,3.0]
[1734039272456,0.8257,3886.3,3885.3,2.5738]
[1734039273153,0.8257,3886.3,3885.2,5.5738]
[1734039273349,1.165571,3886.3,3885.2,5.5738]
[1734039273755,1.165571,3886.3,3885.3,2.57377]
[1734039274156,1.165571,3886.3,3885.2,3.0]
[1734039274470,4.09380915,3887.2,3885.2,3.0]
[1734039274471,0.7511,3886.7,3885.6,3.0]
[1734039274812,0.7511,3886.7,3885.9,2.5734]
[1734039275354,0.7511,3886.7,3885.7,2.57353]
[1734039275590,0.7511,3886.7,3885.4,5.47827505]
[1734039275763,0.7511,3886.7,3885.8,2.57346]
[1734039276663,0.7511,3886.7,3885.9,2.57339]
[1734039277791,0.7511,3886.7,3885.6,2.57354]
[1734039278005,2.57298,3886.6,3885.5,3.0]
[1734039278288,0.332408,3886.5,3885.5,2.57366]
[1734039278496,0.7511,3886.7,3885.6,3.0]
[1734039278870,0.7511,3886.7,3885.7,3.0]
[1734039279590,0.7511,3886.7,3885.4,2.57367]
[1734039279591,3.32401,3886.7,3885.4,2.57367]
[1734039279778,0.332401,3886.6,3885.4,2.57367]
[1734039280375,2.57294,3886.6,3885.4,2.57369]
[1734039280908,2.57294,3886.6,3885.2,3.0]
[1734039280909,0.7511,3886.7,3885.7,2.57353]
[1734039281065,0.7511,3886.7,3885.6,2.5736]
[1734039281269,0.7511,3886.7,3885.7,2.57349]
[1734039286675,0.7511,3886.7,3885.5,0.8031]
[1734039286871,0.7511,3886.7,3886.0,2.57333]
[1734039289559,0.7511,3886.7,3885.8,2.57345]
[1734039289760,0.7511,3886.7,3885.5,3.3767]
[1734039289943,2.57298,3886.6,3885.5,2.5736]
[1734039290145,0.7753,3886.5,3885.5,2.5736]
[1734039290467,0.7753,3886.5,3885.4,3.0]
[1734039290468,1.110128,3886.5,3885.4,3.0]
[1734039290760,1.110128,3886.5,3885.5,2.57363]
[1734039290914,1.110128,3886.5,3885.6,2.57358]
[1734039291329,1.110128,3886.5,3885.2,3.8031]
[1734039291643,0.7753,3886.5,3885.8,2.57346]
[1734039293155,0.7753,3886.5,3885.4,2.5737]
[1734039293362,0.7753,3886.5,3885.8,2.57344]
[1734039293524,0.7753,3886.5,3885.9,2.57338]
[1734039293852,0.7753,3886.5,3885.7,2.57352]
[1734039296494,1.01465683,3886.5,3885.7,2.57352]
[1734039296672,0.7753,3886.5,3885.7,2.57352]
[1734039297072,1.01465683,3886.5,3885.7,2.57352]
[1734039297292,0.23935683,3886.4,3885.7,2.57352]
[1734039297502,0.23935683,3886.3,3885.8,2.57344]
[1734039297669,0.7753,3886.5,3885.8,2.57344]
[1734039297999,0.24019268,3886.4,3885.8,2.57344]
[1734039298201,0.24039613,3886.3,3885.8,2.57344]
[1734039298398,0.7753,3886.5,3885.5,3.0]
[1734039298599,0.7753,3886.5,3885.6,0.55737]
[1734039298799,0.24040564,3886.4,3885.6,0.55737]
[1734039298981,0.24040564,3886.3,3885.8,2.5734]
[1734039299185,0.7753,3886.5,3885.8,2.5734]
[1734039299384,0.24068661,3886.4,3885.8,2.5734]
[1734039299588,0.24068661,3886.3,3885.8,2.5734]
[1734039299902,0.24068661,3886.2,3885.8,2.5734]
[1734039300072,0.24068661,3886.1,3885.8,2.5734]
[1734039300394,0.7753,3886.5,3885.8,2.5734]
[1734039300581,0.24072318,3886.4,3885.8,2.5734]
[1734039300780,0.24072318,3886.3,3885.8,2.5734]
[1734039300982,0.24072318,3886.2,3885.8,2.5734]
[1734039301163,0.24072318,3886.1,3885.8,2.5734]
[1734039301359,0.7753,3886.5,3885.5,3.0]
[1734039301666,0.7753,3886.5,3885.2,0.8031]
[1734039301667,0.8024,3886.3,3885.6,2.57358]
[1734039301872,0.24076649,3886.2,3885.6,2.57358]
[1734039302080,0.24076649,3886.1,3885.6,2.57358]
[1734039302281,0.24076649,3886.0,3885.6,2.57358]
[1734039302562,0.24076649,3885.9,3885.6,2.57358]
[1734039302768,0.8024,3886.3,3885.6,2.57358]
[1734039303095,0.24081252,3886.2,3885.6,2.57358]
[1734039303265,0.24081252,3886.1,3885.6,2.57358]
[1734039303468,0.8024,3886.3,3885.6,2.57358]
[1734039303469,0.24081252,3886.0,3885.6,2.57358]
[1734039303661,0.24081252,3885.9,3885.6,2.57358]
[1734039303859,0.8024,3886.3,3885.6,2.57358]
[1734039304059,0.24081797,3886.2,3885.6,2.57358]
[1734039304298,0.24081797,3886.1,3885.6,2.57358]
[1734039304473,0.24081797,3886.0,3885.6,2.57358]
[1734039304675,0.24081797,3885.9,3885.6,2.57358]
[1734039304882,0.24081797,3885.8,3885.6,2.57358]
[1734039305092,0.8024,3886.3,3885.6,2.57358]
[1734039305293,0.24083711,3886.2,3885.6,2.57358]
[1734039305621,0.24083711,3886.1,3885.6,2.57358]
[1734039305767,0.24083711,3886.0,3885.6,2.57358]
[1734039305968,0.24083711,3885.9,3885.4,2.57372]
[1734039306216,0.24083711,3885.8,3885.5,3.0]
[1734039306387,0.8024,3886.3,3885.5,3.0]
[1734039306702,0.24084785,3886.2,3885.5,3.0]
[1734039306867,0.24084785,3886.1,3885.5,3.0]
[1734039307065,1.04324785,3886.0,3885.5,3.0]
[1734039307271,0.24084785,3885.9,3885.8,3.71709672]
[1734039307593,0.8024,3886.6,3885.9,0.7811]
[1734039307899,0.24084957,3886.5,3885.9,0.7811]
[1734039308099,0.8024,3886.6,3886.3,2.57314]
[1734039308100,0.24084957,3886.4,3886.3,2.57314]
[1734039308704,0.8024,3886.6,3886.3,2.57314]
[1734039308874,0.24079408,3886.5,3886.3,0.257314]
[1734039309069,0.8024,3886.6,3886.3,0.257314]
[1734039309266,0.2407934,3886.5,3886.4,0.02572921]
[1734039309518,0.8024,3887.3,3886.3,1.40094072]
[1734039309803,0.8024,3887.3,3886.5,2.573]
[1734039309804,0.2407022,3887.2,3886.5,2.573]
[1734039310102,0.2407022,3887.1,3886.5,3.34773407]
[1734039310269,0.2407022,3887.0,3886.5,3.34773407]
[1734039310469,0.2407022,3886.9,3886.5,3.34773407]
[1734039310696,0.8024,3887.3,3886.5,3.34773407]
[1734039310898,0.24062461,3887.2,3886.5,3.34773407]
[1734039311098,0.24062461,3887.1,3886.5,3.34773407]
[1734039311298,0.24062461,3887.0,3886.5,3.34773407]
[1734039311603,0.24062461,3886.9,3886.5,3.34773407]
[1734039311807,0.8024,3887.3,3886.5,3.34773407]
[1734039311964,0.24055179,3887.2,3886.5,3.34773407]
[1734039312170,1.00235179,3887.1,3886.5,2.573]
[1734039312504,0.24055179,3887.0,3886.5,2.573]
[1734039312682,0.24055179,3886.9,3886.5,2.573]
[1734039312881,0.7618,3887.1,3886.5,2.573]
[1734039313079,0.24049861,3887.0,3886.3,2.830444]
[1734039313284,0.7618,3887.1,3886.3,2.830444]
[1734039313587,0.24048831,3887.0,3886.3,0.257314]
[1734039313778,0.7618,3887.1,3886.4,2.57307]
[1734039313978,0.24044933,3887.0,3886.5,2.57298]
[1734039314185,0.7618,3887.1,3886.5,2.57298]
[1734039314466,0.24043589,3887.0,3886.5,2.57298]
[1734039314670,0.7618,3887.1,3886.5,2.57298]
[1734039314985,0.24040341,3887.0,3886.5,2.57298]
[1734039315182,0.7618,3887.1,3886.5,2.8560094]
[1734039315495,0.7618,3887.1,3886.5,0.2830294]
[1734039316302,0.7618,3887.1,3886.7,2.57287]
[1734039318496,0.7618,3887.1,3886.8,2.5728]
[1734039319327,0.7618,3887.1,3886.5,0.2830294]
[1734039319328,0.7618,3887.1,3886.6,2.57292]
[1734039319527,0.7618,3887.1,3886.5,2.573]
[1734039319890,2.41039519,3887.3,3886.6,1.1129314]
[1734039320209,0.7868,3887.4,3886.9,2.57271]
[1734039320523,0.7868,3887.4,3886.6,0.8299]
[1734039320726,0.7868,3887.4,3886.7,2.57285]
[1734039321098,0.24020386,3887.3,3886.7,2.57285]
[1734039321440,0.7868,3887.4,3886.7,2.57285]
[1734039321597,0.7868,3887.4,3886.8,2.57275]
[1734039321920,0.24019165,3887.3,3886.6,3.40282]
[1734039322129,0.7868,3887.4,3886.7,2.57286]
[1734039322588,0.7868,3887.4,3886.6,0.8299]
[1734039322790,0.7868,3887.4,3887.1,2.5726]
[1734039323717,0.7868,3887.4,3886.9,2.57268]
[1734039324028,0.7868,3887.4,3886.6,0.8299]
[1734039324029,0.7868,3887.4,3887.0,2.57267]
[1734039326360,0.7868,3887.4,3886.8,2.57279]
[1734039327232,0.7868,3887.4,3886.9,2.57272]
[1734039328827,0.24009966,3887.7,3887.0,0.8299]
[1734039329022,1.0,3888.0,3887.3,3.0]
[1734039329417,1.0,3888.0,3887.7,2.57217]
[1734039329612,1.0,3888.0,3887.4,0.8299]
[1734039329829,1.0,3888.0,3887.9,3.40198]
[1734039330025,1.0,3888.0,3887.9,3.98985479]
[1734039331528,1.7867,3888.0,3887.0,0.7591]
[1734039331717,1.7867,3888.0,3887.0,1.90124284]
[1734039331914,0.7867,3887.9,3887.0,1.14214284]
[1734039332351,0.03956911,3887.8,3887.2,2.57249]
[1734039332996,0.03956911,3887.8,3887.4,2.57237]
[1734039333365,0.03956911,3887.8,3887.7,2.57221]
[1734039333875,1.0,3888.0,3887.9,2.57208]
[1734039334062,1.03882357,3888.0,3887.9,2.57208]
[1734039334403,1.0,3888.0,3887.9,2.57208]
[1734039337401,1.0,3888.0,3887.6,2.57226]
[1734039337764,0.03936454,3887.9,3887.4,5.57239]